[Event "4NCL 2023-2024"]
[Site "Daventry"]
[Date "2024.05.05"]
[Round "10.10"]
[White "Rowson, Jonathan"]
[Black "Horton, Jamie A"]
[Result "1-0"]
[ECO "D31"]
[WhiteElo "2527"]
[BlackElo "2183"]
[Annotator "TA"]
[PlyCount "105"]
[EventDate "2023.11.11"]
[EventType "team-tourn"]
[EventCountry "ENG"]
[SourceTitle "playchess.com"]
[Source "ChessBase"]
[SourceQuality "1"]
[TimeControl "40/6000+30:3000+30"]

{[%evp 38,105,-236,-246,-202,-407,-310,-361,-387,-502,-523,-611,-602,-1017,-707,-1270,-1229,-2837,-1316,-1733,-299,-29993,-191,-986,-300,-302,-380,-364,-373,-414,-27,-30,520,476,454,513,513,387,483,506,509,509,509,509,502,495,502,502,487,487,29961,29965,29963,29961,5443,5327,29972,29973,29972,29973,29974,29975,29977,29971,29966,29968,29974,29974,29971,11007]} 1. d4 {[%emt 0:04:30]} d5 {[%emt 0:00:25]} 2. c4 {[%emt 0:01:17]} e6 {[%emt 0:00:16]} 3. Nc3 {[%emt 0:00:07]} a6 {[%emt 0:00:15]} 4. g4 {[%emt 0:02:32]} dxc4 {[%emt 0:17:47]} 5. Bg2 {[%emt 0:00:03]} Be7 {[%emt 0:10:13]} 6. Nf3 {[%emt 0:06:04]} Nf6 {[%emt 0:14:34]} 7. g5 {[%emt 0:01:44]} Nd5 {[%emt 0:03:19]} 8. h4 {[%emt 0:00:31]} b5 {[%emt 0:07:34]} 9. h5 {[%emt 0:02:29]} Bb7 {[%emt 0:02:54]} 10. a4 {[%emt 0:05:43]} Nxc3 {[%emt 0:04:58]} 11. bxc3 {[%emt 0:00:05]} Nd7 {[%emt 0:00:18]} 12. axb5 {[%emt 0:05:12]} axb5 {[%emt 0:00:07]} 13. Rb1 {[%emt 0:00:11]} Bc6 {[%emt 0:02:18]} 14. Qc2 {[%emt 0:00:59]} Ra5 {[%emt 0:08:12]} 15. e4 {[%emt 0:17:10]} Bb7 {[%emt 0:03:31]} 16. Be3 {[%emt 0:04:01]} Qa8 {[%emt 0:01:46]} 17. Nd2 {[%emt 0:01:35]} c5 {[%emt 0:10:05]} 18. O-O {[%emt 0:13:19]} O-O {[%emt 0:03:31]} 19. g6 {[%emt 0:03:57]} cxd4 {[%emt 0:03:32]} (19... hxg6) 20. cxd4 {[%emt 0:01:13]} f5 {[%emt 0:06:37]} (20... hxg6 21. hxg6 Ra2 (21... fxg6 22. Bh3 $11) 22. Rb2 Rxb2 23. gxf7+ Rxf7 24. Qxb2) 21. Bh3 $2 {[%emt 0:02:35]} (21. d5) 21... Nf6 {[%emt 0:01:49]} (21... Bxe4 22. Nxe4 Ra2 23. Rb2 Rxb2 24. Qxb2 Qxe4 (24... fxe4 $2 25. Bxe6+ Kh8 26. Bxd7 $18) 25. Qxb5 $15 (25. gxh7+ Kxh7 26. Qxb5 Qh4 $19) (25. Bg2 Qg4 $17)) 22. exf5 {[%emt 0:00:59]} exf5 {[%emt 0:01:49]} (22... Nxh5 23. Nxc4 bxc4 24. Qxc4 $17) (22... Ra2 23. Qd1 Bd5 24. fxe6 $17 (24. gxh7+ $2 Kh8 $19)) 23. Bg5 {[%emt 0:02:51]} (23. gxh7+ Kh8 (23... Kxh7 24. Qxf5+ Kh8 25. Rxb5 $15) (23... Nxh7 $2 24. Bxf5 Ng5 25. Bg4 $19) 24. Bf4 Nxh5 $19 (24... Kxh7 25. Qxf5+ Kh8 26. h6 $11)) 23... Bd6 {[%emt 0:01:31]} 24. Bxf5 {[%emt 0:02:17]} Nxh5 {[%emt 0:01:02]} 25. Rfe1 {[%emt 0:04:12]} b4 {[%emt 0:01:42]} 26. Be6+ {[%emt 0:02:38]} Kh8 {[%emt 0:00:05]} 27. Be3 {[%emt 0:00:12]} c3 {[%emt 0:00:29]} (27... Rg5+ $142 28. Bxg5 Bh2+ 29. Kxh2 Rxf2+ 30. Kh3 Bc8 31. Kg4 Qg2+ 32. Kxh5 Qh2+ 33. Bh4 Rf4 34. Nf3 Qxc2 35. Kg5 Rxf3 36. Bg3 Qxg6+ (36... Rxg3+ $2 37. Kf4 $19) 37. Kh4 Bxe6 (37... Qxg3+ $2 38. Kh5 g6+ 39. Kh6 Qh4#) 38. Rxe6 Qxg3+ 39. Kh5 Rf5#) 28. Nc4 {[%emt 0:00:06]} Ra2 $2 {[%emt 0:02:47]} (28... Qd8 29. Bg4 b3 (29... Qh4 $2 30. f3 $19)) 29. Qb3 $2 {[%emt 0:00:30]} (29. Nxd6 $19 Rxc2 30. Nf7+ Rxf7 31. gxf7) 29... Be7 $2 {[%emt 0:00:59]} (29... Bh2+ {mates} 30. Kxh2 Raxf2+ 31. Bxf2 Rxf2+ 32. Kh3 Bg2+ (32... hxg6 $2 33. Qc2 $19) 33. Kh4 Qd8+ (33... hxg6 34. Bc8 Qf3 35. Re8+ Kh7 36. Rh8+ Kxh8 37. Qxc3 Qf6+ 38. Kg4 Qf4#) 34. Kxh5 Bf3+ 35. Bg4 Rh2#) 30. Nb6 $2 {[%emt 0:01:46]} (30. Ne5 Ra5 31. Qc4 (31. Nf7+ Rxf7 32. gxf7 Nf6 $17)) 30... Qa5 $2 {[%emt 0:00:31]} (30... Rf6 31. Bf7 Rxb6) 31. Qxa2 $19 {[%emt 0:04:55]} Qxb6 {[%emt 0:00:01]} 32. d5 {[%emt 0:00:12]} Qc7 {[%emt 0:00:44]} 33. Qa4 {[%emt 0:01:39] [#]} Nf4 $2 {[%emt 0:00:41]} ({Stronger than} 33... hxg6 34. Rxb4 Bxb4 35. Qxb4 $11) ({Better is} 33... Qc4 $1 $19 {[%cal Rc4h4]} 34. Rbd1 (34. Qd7 $2 Qh4 $19) 34... Nf4 (34... hxg6 35. Qd7 $14) (34... Qe4 35. Rd4 $11)) 34. Rxb4 $1 $11 {[%emt 0:01:08]} Nxd5 $2 {[%emt 0:00:32][%mdl 8192] [#]} (34... Bxb4 $11 35. Qxb4 Nxg6 (35... Nxd5 36. Qxf8#)) 35. Rxb7 $1 $18 {[%emt 0:00:38]} (35. Rc4 Qe5 36. Bf7 Qf5 $15) 35... Qxb7 {[%emt 0:00:30]} 36. Qe4 {[%emt 0:00:05]} Qb4 {[%emt 0:00:34]} 37. Bxd5 {[%emt 0:05:43]} Qxe4 {[%emt 0:00:30]} 38. Bxe4 {[%emt 0:00:04]} hxg6 {[%emt 0:00:16]} 39. Kg2 {[%emt 0:01:15]} Rd8 {[%emt 0:00:16]} 40. Bb6 {[%emt 0:01:33]} Rd7 {[%emt 0:00:50]} 41. Bxg6 {[%emt 0:54:43]} Rd6 {[%emt 0:09:14]} 42. Bc2 {[%emt 0:00:00]} Rxb6 {[%emt 0:02:25]} 43. Rxe7 {[%emt 0:00:00]} g6 {[%emt 0:00:37]} (43... Kg8 $18 44. Rc7 Rb5 45. Rxc3 Kf7) 44. Rc7 {[%emt 0:00:00]} Kg8 {[%emt 0:00:27]} 45. Rxc3 {[%emt 0:00:00]} Kg7 {[%emt 0:00:06]} 46. Be4 {[%emt 0:00:00]} Re6 {[%emt 0:03:33]} 47. f3 {[%emt 0:00:00]} Re5 {[%emt 0:00:55]} 48. Kg3 {[%emt 0:00:00]} g5 {[%emt 0:01:15]} 49. Kg4 {[%emt 0:00:00]} Kf7 {[%emt 0:00:16]} 50. Rc7+ {[%emt 0:00:00]} Kf6 {[%emt 0:00:18]} 51. Rc6+ {[%emt 0:00:00]} Kf7 {[%emt 0:00:06]} 52. Bf5 {[%emt 0:00:00]} Re3 {[%emt 0:00:33]} 53. Be4 {[%emt 0:00:00]} (53. Kxg5 $142 Re7 54. Rf6+ Ke8 55. Bg6+ Kd8 56. Rf8+ Kd7 57. Rf7 Rxf7 58. Bxf7) 1-0

[Event "4NCL 2023-2024"]
[Site "Daventry"]
[Date "2024.05.05"]
[Round "10.11"]
[White "Gallana, Marco"]
[Black "Alsina Leal, Daniel"]
[Result "1/2-1/2"]
[ECO "E24"]
[WhiteElo "2260"]
[BlackElo "2510"]
[Annotator "TA"]
[PlyCount "109"]
[EventDate "2023.11.11"]
[EventType "team-tourn"]
[EventCountry "ENG"]
[SourceTitle "playchess.com"]
[Source "ChessBase"]
[SourceQuality "1"]
[TimeControl "40/6000+30:3000+30"]

{[%evp 39,109,-31,-11,-16,0,-31,0,-62,0,0,0,0,-14,0,0,0,0,-14,20,27,22,0,18,15,31,38,64,20,35,0,118,134,112,0,14,0,276,246,292,327,266,277,250,276,298,292,243,247,270,131,132,24,24,22,23,24,24,24,24,24,20,22,22,20,22,22,22,16,16,16,18,18]} 1. d4 {[%emt 0:00:07]} Nf6 {[%emt 0:05:34]} 2. c4 {[%emt 0:00:38]} e6 {[%emt 0:00:15]} 3. Nc3 {[%emt 0:00:40]} Bb4 {[%emt 0:00:19]} 4. a3 {[%emt 0:00:57]} Bxc3+ {[%emt 0:00:14]} 5. bxc3 {[%emt 0:00:09]} Nc6 {[%emt 0:00:33]} 6. f3 {[%emt 0:00:41] E24: Nimzo-Indian: Sämisch: Unusual Black 5th moves and 5...c5 sidelines.} b6 {[%emt 0:00:34]} 7. e4 {[%emt 0:01:05]} Na5 {[%emt 0:00:49]} 8. Bd3 {[%emt 0:01:57]} Ba6 {[%emt 0:02:18]} 9. Qe2 {[%emt 0:06:04]} c5 {[%emt 0:07:40]} 10. d5 {[%emt 0:11:27] 10.Nh3 is the modern continuation.} exd5 $146 {[%emt 0:15:13]} ({Predecessor:} 10... d6 11. f4 O-O 12. Nf3 exd5 13. cxd5 Bxd3 14. Qxd3 Re8 15. O-O Nxe4 16. Ng5 c4 {0-1 Corrales Jimenez,F (2537)-Vokhidov,S (2536) Titled Tuesday intern op 15th Feb Early blitz 2022 (9)}) 11. cxd5 {[%emt 0:05:26]} Bxd3 {[%emt 0:01:32]} 12. Qxd3 {[%emt 0:00:09]} c4 {[%emt 0:00:20]} 13. Qc2 {[%emt 0:12:16]} Nb3 {[%emt 0:17:54]} 14. Ra2 {[%emt 0:04:57]} Nc5 {[%emt 0:04:08]} 15. Nh3 {[%emt 0:15:01]} Nd3+ {[%emt 0:03:47]} 16. Kf1 {[%emt 0:00:42]} O-O {[%emt 0:12:49]} 17. Nf2 {[%emt 0:02:02]} Nxc1 {[%emt 0:03:04]} 18. Qxc1 {[%emt 0:00:14]} d6 {[%emt 0:00:37]} 19. g4 {[%emt 0:08:44]} Nd7 {[%emt 0:01:30]} 20. Kg2 {[%emt 0:01:35]} Rc8 {[%emt 0:08:24]} 21. Qe3 {[%emt 0:06:48]} Re8 {[%emt 0:01:58]} 22. Qd4 {[%emt 0:02:42]} Ne5 {[%emt 0:12:09]} 23. Rf1 {[%emt 0:05:37]} ({White should play} 23. h4 $11) 23... Qh4 {[%emt 0:05:33]} (23... h5 $1 $15) 24. Nh1 $11 {[%emt 0:10:25]} Nd3 {[%emt 0:04:00]} 25. Ng3 {[%emt 0:00:31]} g6 {[%emt 0:00:17]} 26. Kh1 {[%emt 0:03:06]} Nf4 {[%emt 0:00:42]} 27. Rg1 {[%emt 0:01:31]} Re5 {[%emt 0:00:29]} 28. a4 {[%emt 0:00:58]} Nh3 {[%emt 0:01:15]} 29. Rf1 {[%emt 0:02:01]} Nf4 {[%emt 0:00:18]} 30. Rg1 {[%emt 0:02:48]} Qe7 {[%emt 0:00:33]} 31. Qd2 {[%emt 0:01:57]} Qf6 {[%emt 0:00:19]} 32. Nf5 {[%emt 0:01:01]} Nd3 {[%emt 0:00:45]} 33. Qh6 {[%emt 0:00:30]} Rd8 {[%emt 0:00:31]} 34. Rg3 {[%emt 0:01:14]} (34. g5 $5 Qh8 $8 35. Nd4 $14) 34... Rxf5 {[%emt 0:00:33]} (34... Ree8 $11) 35. gxf5 $16 {[%emt 0:00:06]} Qxc3 {[%emt 0:00:15]} 36. fxg6 {[%emt 0:00:29]} (36. h4 $1 $16) 36... fxg6 {[%emt 0:00:42]} 37. Rag2 {[%emt 0:01:23]} Ne5 $2 {[%emt 0:00:34][%mdl 8192]} (37... Qe1+ $11 {and Black stays safe.} 38. Rg1 Nf2+ 39. Kg2 Qe2 40. Rxg6+ hxg6 41. Qxg6+ Kf8 42. Qf6+ Ke8 43. Qe6+ Kf8) 38. h4 $1 $18 {[%emt 0:00:26]} Rf8 {[%emt 0:00:24] [#]} 39. h5 $1 {[%emt 0:00:38]} (39. Rf2 Rf7 $11 (39... Rxf3 $2 40. Rgxf3 Nxf3 41. Qf4 $18)) 39... Rf6 {[%emt 0:00:37]} (39... Rxf3 40. hxg6 Rf1+ 41. Kh2 Nf3+ 42. Rxf3 Qe5+ 43. Rfg3 hxg6 44. Kh3 (44. Qxg6+ Kf8 $18) 44... Rh1+ 45. Rh2 Rxh2+ 46. Kxh2 $18) 40. hxg6 {[%emt 0:00:37]} Rxg6 {[%emt 0:00:29] [#]} 41. Kh2 $1 {[%emt 0:14:02]} Rxg3 {[%emt 0:24:39]} 42. Rxg3+ {[%emt 0:01:35]} Ng6 {[%emt 0:00:08]} 43. Qg5 {[%emt 0:15:02]} Kf7 {[%emt 0:03:06]} 44. Qf5+ {[%emt 0:02:45]} (44. Rh3 $18 Nf8 45. Qf4+ Kg7 46. Kg3 (46. Qxd6 Qd2+ 47. Kg3 Qg5+ 48. Kf2 Qd2+ 49. Kf1 Qd3+ 50. Kf2 Qd2+ 51. Kg3 Qg5+ 52. Kh2 Qd2+ 53. Kg3 $11)) 44... Qf6 $16 {[%emt 0:01:57]} 45. Rh3 {[%emt 0:04:21]} (45. Qh3 $16 Nf8 46. Qh5+ Ke7 47. Qg5) 45... Qxf5 $11 {[%emt 0:03:12]} 46. exf5 {[%emt 0:00:06]} Ne7 $1 {[%emt 0:04:55]} 47. Rxh7+ {[%emt 0:05:04]} Kf6 {[%emt 0:00:07]} 48. Rh6+ {[%emt 0:00:47]} Kxf5 {[%emt 0:02:24]} 49. Rxd6 {[%emt 0:00:31]} c3 {[%emt 0:02:35]} 50. Rd7 {[%emt 0:01:33]} c2 $1 {[%emt 0:01:48]} 51. Rc7 $1 {[%emt 0:00:12]} (51. Rxe7 $2 c1=Q (51... c1=R 52. Rxa7 Rd1 53. Kg3 $11) 52. Rf7+ Ke5 53. Rxa7 Qh6+ (53... Kxd5 $2 54. Rd7+ Kc6 55. Ra7 $19) 54. Kg3 Kxd5 55. Rd7+ Kc5 $19) 51... Nxd5 {[%emt 0:00:08]} 52. Rxc2 {[%emt 0:00:05]} (52. Rxa7 c1=Q (52... c1=B 53. a5 $14) 53. Rf7+ Ke5 54. Ra7 Qg5 55. Ra8 Nf4 56. Re8+ Kd6 (56... Kd5 {is a self mate.} 57. Rd8+ Qxd8 58. Kg3 Qg5+ 59. Kf2 Qg2+ 60. Ke3 Ke5 61. a5 Qe2#) (56... Kd5 57. Rd8+ Qxd8 58. Kg3 Qg5+ 59. Kf2 Qg2+ 60. Ke3 Ke5 61. a5 Qe2#)) 52... Kf4 {[%emt 0:00:50]} 53. Rd2 {[%emt 0:02:11]} Ne3 {[%emt 0:00:31]} 54. Rd7 {[%emt 0:03:09]} Kxf3 {[%emt 0:00:16]} 55. Rxa7 {[%emt 0:01:04]} 1/2-1/2

[Event "4NCL 2023-2024"]
[Site "Daventry"]
[Date "2024.05.05"]
[Round "10.12"]
[White "Camacho Collados, Jose"]
[Black "Pein, Jonathan"]
[Result "0-1"]
[ECO "A46"]
[WhiteElo "2366"]
[BlackElo "2272"]
[Annotator "TA"]
[PlyCount "224"]
[EventDate "2023.11.11"]
[EventType "team-tourn"]
[EventCountry "ENG"]
[SourceTitle "playchess.com"]
[Source "ChessBase"]
[SourceQuality "1"]
[TimeControl "40/6000+30:3000+30"]

{[%evp 14,224,0,2,-5,7,14,0,-11,-8,-14,-10,0,0,0,0,0,0,0,0,0,0,0,0,0,-75,-102,-90,-84,-90,-83,-177,-180,-162,52,65,58,58,48,-16,-4,-152,-120,-169,-181,-178,-172,-254,-243,-260,-101,-137,-105,-102,-82,-201,-179,-193,-195,-206,-47,-59,-10,-175,-185,-181,-181,-216,-224,-219,-196,-212,-140,-141,-112,-114,0,-144,-138,-170,-170,-208,-203,-205,-208,-238,-228,-266,-260,-279,-260,-272,-263,-272,-233,-244,-243,-230,-214,-243,-242,-291,-290,-448,-313,-333,-330,-319,-327,-342,-342,-329,-203,-196,-196,-196,-196,-188,-188,-227,-230,-239,0,0,0,0,0,0,0,0,0,0,0,0,0,0,0,0,0,-341,-334,-432,-384,-1005,-585,-549,-500,-29950,-29951,-29951,-29954,-29952,-29954,-29954,-29954,-29953,-29952,-29954,-29954,-29942,-29949,-29959,-29961,-29960,-29962,-29962,-29962,-29962,-29963,-29961,-29961,-29966,-29968,-29966,-29961,-29962,-29961,-29970,-29971,-29972,-29972,-29975,-29971,-29971,-29971,-29973,-29973,-29976,-29974,-29978,-29977,-29977,-29978,-29979,-29979,-29982,-29979,-29985,-29986,-29986,-29985,-29986,-29986,-29986,-29987,-29989,-29987,-29989,-29990,-29990,-29991,-29991,-29992]} 1. d4 {[%emt 0:00:02]} Nf6 {[%emt 0:00:10]} 2. Nf3 {[%emt 0:00:05]} b6 {[%emt 0:01:41]} 3. Bg5 {[%emt 0:00:05]} Bb7 {[%emt 0:00:11]} 4. Nbd2 {[%emt 0:00:06]} e6 {[%emt 0:00:17]} 5. c3 {[%emt 0:00:07]} Be7 {[%emt 0:00:42]} 6. e3 {[%emt 0:00:05]} h6 {[%emt 0:01:05]} 7. Bh4 {[%emt 0:00:13]} c5 {[%emt 0:00:42]} 8. Bd3 {[%emt 0:00:24]} g5 {[%emt 0:02:58]} 9. Bg3 {[%emt 0:00:23]} g4 {[%emt 0:01:16]} 10. Nh4 {[%emt 0:01:30]} Rg8 {[%emt 0:01:02] The position is equal.} 11. Qc2 {[%emt 0:41:06]} cxd4 {[%emt 0:14:27]} 12. exd4 {[%emt 0:04:33]} Nd5 {[%emt 0:08:38]} 13. Ng6 {[%emt 0:05:36]} fxg6 {[%emt 0:02:42]} 14. Bxg6+ {[%emt 0:00:06]} Kf8 {[%emt 0:00:07]} 15. h3 $1 {[%emt 0:00:24]} Bh4 {[%emt 0:36:21]} 16. Bd6+ {[%emt 0:03:34]} Be7 {[%emt 0:01:08]} 17. Bg3 {[%emt 0:02:45]} Nb4 {[%emt 0:07:38]} 18. cxb4 {[%emt 0:00:17]} Bxg2 {[%emt 0:00:02]} 19. Be4 {[%emt 0:03:30]} Bxh1 $17 {[%emt 0:01:47]} 20. Bxh1 {[%emt 0:00:05]} Nc6 {[%emt 0:05:24][%cal Bb8c6,Bc6d4,Bd4f5][%mdl 32]} 21. Qh7 {[%emt 0:00:37]} Rg7 {[%emt 0:03:04]} (21... gxh3 $6 22. Qxh6+ Kf7 23. Qh5+ Kf8 24. Qf3+ Ke8 25. d5 Nxb4 26. Qh5+ Kf8 27. Nc4 $11) 22. Qh8+ {[%emt 0:03:19]} (22. Qxh6 $17 Kg8 23. Bxc6) 22... Kf7 $19 {[%emt 0:00:46]} 23. Qxh6 {[%emt 0:00:23]} Bxb4 $2 {[%emt 0:06:16]} (23... d5 $1 $19 24. hxg4 Qh8 (24... Nxb4 25. Nf3 $11) (24... Nxd4 25. Qf4+ Bf6 26. Nf3 $17) (24... Bxb4 25. Bh4 $15) (24... Rxg4 25. Bf3 $11) 25. Qf4+ Kg8) 24. d5 $14 {[%emt 0:01:34]} Nd4 {[%emt 0:07:36]} 25. Be5 $1 {[%emt 0:26:44][%csl LRd4,LRg7]} (25. Qf4+ Qf6 26. dxe6+ (26. hxg4 $2 Qxf4 27. Bxf4 Rxg4 $19) 26... dxe6 27. Qxf6+ Kxf6 28. Bxa8 Nc2+ (28... gxh3 $2 29. Rd1 $18) 29. Kd1 Nxa1 30. hxg4 Rxg4 $11) 25... Nf5 {[%emt 0:05:00]} (25... Qg5 $6 26. Qxg7+ Qxg7 27. dxe6+ dxe6 28. Bxg7 Nc2+ 29. Kd1 $16) 26. Qh5+ {[%emt 0:00:07]} (26. Qf4 $1 $14 Bxd2+ 27. Qxd2 gxh3 28. Bxg7 (28. dxe6+ $2 dxe6 29. Bxg7 Qxd2+ 30. Kxd2 Rd8+ 31. Ke1 Rg8 $17) 28... Kxg7 29. dxe6) 26... Rg6 $11 {[%emt 0:01:02]} 27. hxg4 {[%emt 0:02:08]} (27. dxe6+ $11 {remains equal.} dxe6 28. Rd1) 27... Ng7 $1 $36 {[%emt 0:00:18][%mdl 2048] Black is really pushing. Chess con chili.} 28. Qh3 {[%emt 0:05:27]} (28. Qh2 $17 Qg5 29. dxe6+ Rxe6 30. f4 Rxe5+ 31. fxe5) 28... Qg5 $1 $19 {[%emt 0:01:34][%csl LRd2,LRe5,LRg4]} 29. Bc3 {[%emt 0:01:09]} Bxc3 {[%emt 0:00:28]} (29... Qxg4 $2 30. Qxg4 Rxg4 31. dxe6+ dxe6 32. Bxa8 $18) 30. Qxc3 {[%emt 0:00:15]} (30. bxc3 {was worth a try.} exd5 (30... Qxg4 $2 31. Qxg4 Rxg4 32. dxe6+ Kf6 33. Bxa8 $18) 31. O-O-O) 30... Qxg4 {[%emt 0:00:36]} 31. Bf3 {[%emt 0:06:41]} Qf4 {[%emt 0:00:02]} (31... Qg1+ $19 {is more deadly.} 32. Nf1 Rf8) 32. O-O-O $17 {[%emt 0:00:24]} Rf8 {[%emt 0:00:50]} 33. Kb1 {[%emt 0:00:58]} Kg8 {[%emt 0:00:22]} 34. Rh1 {[%emt 0:00:16]} (34. Be4 $17 {might work better.} Rg4 35. f3) 34... Rh6 $19 {[%emt 0:00:46]} 35. Rg1 {[%emt 0:00:22][%csl Gg1][%cal Rc3g7]} e5 {[%emt 0:00:31]} 36. a3 {[%emt 0:02:25]} Rh2 $2 {[%emt 0:00:24]} (36... Qd4 $19 {...Qxc3 would now be deadly.} 37. Qc1 Rh2 (37... Qxf2 38. d6 $17) 38. Rxg7+ Kxg7 39. Qg1+ Kf7 (39... Kf6 40. Ne4+ Kf7 41. Qxh2 $11) 40. Qxh2 Qxd2 41. Qh5+ Kf6) 37. d6 $15 {[%emt 0:00:38]} Kh8 {[%emt 0:00:32]} (37... Rxf2 38. Bd5+ Kh7 39. Ka2 $11) (37... Qd4 $15 {feels stronger.} 38. Qb3+ Kh8) 38. Rg4 $2 {[%emt 0:00:34]} (38. Bd5 $11) 38... Qf5+ $19 {[%emt 0:00:26]} 39. Ka1 {[%emt 0:00:17]} Rh3 {[%emt 0:00:33][%cal Rh3f3]} (39... Rxf2 40. Rh4+ Kg8 41. Be4 $16 (41. Bd5+ Ne6 $11)) 40. Rg1 {[%emt 0:00:42]} Rxf3 {[%emt 0:00:34]} 41. Nxf3 {[%emt 0:02:54]} Qxf3 {[%emt 0:00:58]} 42. Qxe5 {[%emt 0:00:07]} Qf6 {[%emt 0:10:36]} (42... Qxf2 43. Qxg7#) 43. Qd5 {[%emt 0:00:57] Rh1+ would kill now.} Qe6 {[%emt 0:02:44]} (43... Qxf2 44. Rh1+) 44. Qg5 {[%emt 0:01:34]} Qf6 {[%emt 0:06:23]} 45. Qd5 {[%emt 0:00:29] White wants to mate with Rh1+.} Nf5 {[%emt 0:11:30]} (45... Qxf2 46. Rh1+) 46. Rh1+ {[%emt 0:07:19]} Nh6 {[%emt 0:00:45]} 47. Qd2 {[%emt 0:01:12]} Kg7 {[%emt 0:03:00][%cal Of8e8]} (47... Qxf2 48. Qxh6+ Kg8 49. Qh7#) 48. Rg1+ {[%emt 0:00:20]} Kh7 {[%emt 0:01:11]} 49. Qd3+ {[%emt 0:00:36]} Qf5 {[%emt 0:01:00]} 50. Qd4 {[%emt 0:02:46]} Rf6 {[%emt 0:00:45]} ({And not} 50... Qxf2 51. Qg7#) 51. Re1 {[%emt 0:03:14]} Re6 {[%emt 0:03:11] Wards off Re5} (51... Qxf2 52. Re7+ Kg6 53. Qxf2 Rxf2 54. Rxd7 $11) 52. Rc1 {[%emt 0:05:08]} Qf6 {[%emt 0:01:54]} 53. Qd3+ {[%emt 0:00:54]} Qg6 {[%emt 0:01:38]} 54. Qa6 {[%emt 0:00:49]} Rxd6 {[%emt 0:02:01]} 55. Qxa7 {[%emt 0:00:07]} Qf6 {[%emt 0:00:51]} 56. Qc7 {[%emt 0:08:20]} Rd2 {[%emt 0:00:45][%csl Gd2][%cal Rf6b2]} 57. Rc3 {[%emt 0:00:43]} Qxf2 {[%emt 0:02:28][%cal Oh6f5]} (57... Rxf2 58. Qxd7+ Qf7 59. Qd3+ Qg6 60. Qh3 $19 (60. Rc7+ Rf7 $15)) 58. Rb3 {[%emt 0:00:05]} (58. Qc4 $142) 58... Qf1+ {[%emt 0:03:47]} 59. Ka2 {[%emt 0:00:01]} b5 {[%emt 0:00:56]} 60. Qc5 {[%emt 0:01:02]} Qf7 {[%emt 0:02:13] Prevents Qe7.} 61. Qxb5 {[%emt 0:00:55]} Nf5 {[%emt 0:00:34]} 62. Qf1 {[%emt 0:00:26]} Qd5 {[%emt 0:00:42]} 63. Qf3 {[%emt 0:04:18]} Qxf3 {[%emt 0:01:35]} 64. Rxf3 {[%emt 0:00:01][%mdl 4096] Endgame. KRN-KR} Kg6 {[%emt 0:00:20]} 65. a4 {[%emt 0:00:24]} Kf6 {[%emt 0:00:40]} 66. a5 {[%emt 0:00:24]} Ke6 {[%emt 0:00:26]} 67. a6 {[%emt 0:00:39]} Rc2 $2 {[%emt 0:00:32]} (67... Rh2 $19 {Hoping for ...Nd4.} 68. Rc3 Rh8) 68. Rc3 $1 $11 {[%emt 0:00:56]} Rh2 {[%emt 0:00:35]} (68... Rg2 $5 69. Rc8 $8 Rg4 $11) 69. Rc8 {[%emt 0:04:35] Strongly threatening a7.} Rh4 {[%emt 0:00:20]} 70. b3 {[%emt 0:08:24] Prevents Ra4+} Rh2+ {[%emt 0:00:04]} 71. Kb1 {[%emt 0:00:48]} Rh1+ {[%emt 0:00:17]} 72. Kb2 {[%emt 0:00:09]} Rh2+ {[%emt 0:00:36]} 73. Kb1 {[%emt 0:01:30] And now a7 would win.} Rh1+ {[%emt 0:00:05]} 74. Kb2 {[%emt 0:00:14] Black must now prevent a7.} Rh2+ {[%emt 0:00:15]} 75. Ka3 {[%emt 0:03:16] aiming for a7.} Rh1 {[%emt 0:01:54]} (75... Nd4 $5) 76. Ra8 $2 {[%emt 0:00:31][%mdl 8192] Black converts the advantage convincingly.} (76. Kb2 $11 {and White is okay.} Rh2+) 76... Nd4 $19 {[%emt 0:00:28]} 77. a7 {[%emt 0:01:56] [#] Threatens to win with Re8+.} Kd6 $1 {[%emt 0:00:28] ...Nc6 is the strong threat.} 78. Kb4 $2 {[%emt 0:00:59]} (78. Kb2 Nb5 79. Ka2) 78... Ra1 {[%emt 0:00:23][%cal Oa1a7] ( -> ...Rxa7!)} 79. Kc4 {[%emt 0:00:30]} Nc6 {[%emt 0:00:21]} 80. b4 {[%emt 0:00:22]} (80. Rf8 $19 Rxa7 (80... Nxa7 $2 81. Rf2 $19) 81. Rg8) 80... Rxa7 {[%emt 0:00:38] Black mates.} 81. Rh8 {[%emt 0:00:29]} Ra4 {[%emt 0:00:27]} 82. Rh6+ {[%emt 0:00:01]} Kc7 {[%emt 0:00:17]} 83. Kc5 {[%emt 0:00:05]} Ra1 {[%emt 0:00:36]} ({Inferior is} 83... Rxb4 84. Rxc6+ dxc6 85. Kxb4 $11) 84. b5 {[%emt 0:00:15]} Rc1+ {[%emt 0:00:14]} 85. Kd5 {[%emt 0:00:06]} Ne7+ {[%emt 0:00:26]} 86. Ke4 {[%emt 0:00:09]} Nc8 {[%emt 0:00:45]} 87. Kd5 {[%emt 0:00:25]} Nb6+ {[%emt 0:00:17]} 88. Kd4 {[%emt 0:00:08]} Rc4+ {[%emt 0:00:11]} 89. Kd3 {[%emt 0:00:04]} Rc5 {[%emt 0:00:09]} 90. Rh1 {[%emt 0:00:36]} Rxb5 {[%emt 0:00:08]} 91. Rc1+ {[%emt 0:00:03]} Kd6 {[%emt 0:00:09]} 92. Kd4 {[%emt 0:00:07]} Rb4+ {[%emt 0:00:15]} 93. Kd3 {[%emt 0:00:05]} Nd5 {[%emt 0:00:14]} 94. Ra1 {[%emt 0:00:06]} Rh4 {[%emt 0:00:28]} 95. Ra7 {[%emt 0:00:09]} Nb4+ {[%emt 0:00:40]} 96. Ke3 {[%emt 0:00:23]} Nc6 {[%emt 0:00:06]} 97. Ra8 {[%emt 0:00:18]} Kd5 {[%emt 0:00:15]} 98. Ra1 {[%emt 0:00:26]} Ke5 {[%emt 0:00:34]} 99. Rg1 {[%emt 0:00:58]} Rh3+ {[%emt 0:00:11]} 100. Kd2 {[%emt 0:00:04]} d5 {[%emt 0:00:17]} 101. Rg5+ {[%emt 0:00:04]} Kd4 {[%emt 0:00:18]} 102. Rg4+ {[%emt 0:00:03] [#]} Kc5 $1 {[%emt 0:00:09]} 103. Rg8 {[%emt 0:00:14]} Ne5 {[%emt 0:00:56]} 104. Rf8 {[%emt 0:00:14]} d4 {[%emt 0:00:27]} 105. Rd8 {[%emt 0:00:11]} Rh2+ {[%emt 0:00:15]} 106. Kd1 {[%emt 0:00:04]} Kc4 {[%emt 0:00:22]} 107. Ra8 {[%emt 0:00:05]} Kd3 {[%emt 0:00:27][%cal Rh2h1]} 108. Ra3+ {[%emt 0:00:04]} Ke4 {[%emt 0:00:19]} 109. Rg3 {[%emt 0:00:08]} Nf3 {[%emt 0:00:40]} 110. Kc1 {[%emt 0:00:27]} Rh1+ {[%emt 0:00:49]} 111. Kb2 {[%emt 0:00:39]} d3 {[%emt 0:00:43]} 112. Rg8 {[%emt 0:00:11]} d2 {[%emt 0:01:35] Weighted Error Value: White=0.29 (precise) /Black=0.26 (precise) .  Loses game:     	White=2     	---        Missed win:     	---       	Black=2      Mistake:       	White=10    	Black=3      Inaccurate:     	---       	Black=3      OK:         	White=25    	Black=35     Best:        	White=6     	Black=12     Strong:       	White=3     	Black=2} 0-1